bitfinex/quotes_SOLUSD_20251201
["timestamp","ask_amount","ask_price","bid_price","bid_amount"]
[1764611137806,15.32090987,125.01,125.0,8.86]
[1764611138725,1e-08,125.01,125.0,8.86]
[1764611139525,1e-08,125.01,125.0,16.86]
[1764611149435,1e-08,125.01,125.0,22.50042178]
[1764611150431,1e-08,125.01,125.0,31.3103667]
[1764611150740,1e-08,125.01,125.0,51.30020142]
[1764611151045,5.02248448,125.1,125.01,0.14216157]
[1764611151243,5.02248448,125.1,125.07,5.49826021]
[1764611151418,5.02248448,125.1,125.04,5.49826021]
[1764611151419,10.52074469,125.1,125.08,8.86]
[1764611151622,13.01609035,125.1,125.08,8.86]
[1764611152052,5.49826021,125.09,125.07,8.86]
[1764611152734,5.49826021,125.08,125.04,7.99727803]
[1764611152945,5.49826021,125.08,125.05,8.86]
[1764611153144,13.01609035,125.1,125.05,8.86]
[1764611153145,5.49826021,125.07,125.05,8.86]
[1764611153348,5.49826021,125.07,125.04,7.99700282]
[1764611153550,7.99524161,125.08,125.05,8.86]
[1764611153726,5.49826021,125.07,125.05,8.86]
[1764611154138,5.49826021,125.08,125.05,8.86]
[1764611154340,7.9943963,125.09,125.05,8.86]
[1764611154637,5.49826021,125.08,125.05,8.86]
[1764611155635,5.02248448,125.1,125.06,13.49442205]
[1764611156226,5.02248448,125.1,125.07,5.49826021]
[1764611156633,5.02248448,125.1,125.06,33.48482665]
[1764611156861,5.02248448,125.1,125.07,5.49826021]
[1764611157032,5.02248448,125.1,125.08,8.86]
[1764611157372,5.02248448,125.1,125.09,5.49826021]
[1764611158139,5.02248448,125.1,125.09,5.64042178]
[1764611159048,5.02248448,125.1,125.09,0.14216157]
[1764611159352,5.02248448,125.1,125.09,5.64042178]
[1764611160053,5.02248448,125.1,125.08,8.86]
[1764611160633,5.02248448,125.1,125.09,8.86]
[1764611161246,18.5144784,125.1,125.03,7.99778177]
[1764611161441,5.49826021,125.07,125.04,8.86]
[1764611161649,5.49826021,125.06,125.02,5.49826021]
[1764611161846,5.49826021,125.05,125.03,8.86]
[1764611162152,5.49826021,125.05,125.02,8.86]
[1764611162452,13.49455857,125.06,125.02,8.86]
[1764611163344,13.49455857,125.06,125.02,14.35826021]
[1764611163547,7.99559968,125.07,125.03,5.49826021]
[1764611164244,13.49385989,125.07,125.03,5.49826021]
[1764611164646,5.49826021,125.07,125.03,5.49826021]
[1764611164847,7.99495021,125.08,125.03,0.14216157]
[1764611165157,5.49826021,125.06,125.02,8.86]
[1764611165361,13.49447924,125.06,125.02,8.86]
[1764611165731,5.49826021,125.03,124.98,16.308864]
[1764611165931,5.49826021,125.01,124.99,8.86]
[1764611166147,5.49826021,125.02,124.99,8.86]
[1764611166937,5.49826021,125.02,124.96,8.14444331]
[1764611166938,5.49826021,125.0,124.95,52.54784823]
[1764611167139,5.49826021,124.99,124.95,33.39940402]
[1764611167457,5.49826021,124.99,124.95,8.86]
[1764611167458,5.49826021,124.98,124.95,8.86]
[1764611167866,36.30457716,125.03,124.96,5.49826021]
[1764611168063,5.49826021,125.0,124.95,8.86]
[1764611168237,5.49826021,124.99,124.95,8.86]
[1764611168436,36.30457716,125.03,124.95,8.86]
[1764611168437,36.30457716,125.03,124.95,24.19026532]
[1764611168662,15.33026532,125.0,124.95,24.19026532]
[1764611169059,15.33026532,125.0,124.95,8.86]
[1764611169244,15.33026532,125.0,124.95,24.19026532]
[1764611170069,15.33026532,124.99,124.95,24.19026532]
[1764611170242,15.33026532,125.0,124.95,24.19026532]
[1764611170646,16.308864,125.03,124.98,15.33026532]
[1764611170845,15.33026532,125.02,124.99,8.86]
[1764611171247,23.32900924,125.02,124.96,0.14216157]
[1764611171451,15.33026532,125.0,124.96,8.86]
[1764611171658,15.33026532,124.99,124.94,23.81254695]
[1764611171839,15.33026532,124.98,124.95,8.86]
[1764611172056,15.33026532,124.97,124.95,8.86]
[1764611172250,15.33026532,124.96,124.91,19.99965548]
[1764611172455,15.33026532,124.96,124.92,8.88]
[1764611172658,15.33026532,124.96,124.92,24.21026532]
[1764611172970,8.0012802,124.98,124.92,24.21026532]
[1764611173168,15.33026532,124.97,124.92,24.21026532]
[1764611173859,33.1897379,124.99,124.93,15.33026532]
[1764611174176,15.33026532,124.97,124.93,15.33026532]
[1764611174764,15.33026532,124.96,124.92,8.88]
[1764611175173,53.19133802,124.99,124.92,32.21526127]
[1764611175174,15.33026532,124.97,124.92,32.21526127]
[1764611175373,15.33026532,124.97,124.93,15.33026532]
[1764611175575,23.33101577,124.99,124.95,15.33026532]
[1764611175759,23.33101577,124.99,124.95,8.88]
[1764611175956,7.99936005,125.01,124.95,24.21026532]
[1764611176156,15.33026532,125.0,124.95,24.21026532]
[1764611177379,23.33056281,125.0,124.95,24.21026532]
[1764611178078,15.33026532,125.0,124.95,24.21026532]
[1764611178582,25.188864,125.02,124.95,32.21328521]
[1764611178762,33.18779016,125.02,124.97,15.33026532]
[1764611178952,48.51805548,125.02,124.97,15.33026532]
[1764611179152,48.51805548,125.02,124.96,0.14216157]
[1764611179153,15.33026532,125.02,124.98,24.21026532]
[1764611180072,15.33026532,125.02,124.98,8.88]
[1764611180274,23.3284053,125.03,124.98,24.21026532]
[1764611180473,17.77457071,125.03,124.98,18.65643073]
[1764611180776,7.99813998,125.03,125.0,9.77643073]
[1764611180969,7.99813998,125.03,125.01,8.88]
[1764611181756,7.99680127,125.05,125.01,18.65643073]
[1764611182254,7.99541593,125.08,125.01,18.65643073]
[1764611182578,17.77184666,125.08,125.03,9.77643073]
[1764611182754,7.99541593,125.08,125.04,18.65643073]
[1764611182950,7.99436578,125.09,125.04,18.65643073]
[1764611183167,9.77643073,125.08,125.04,8.88]
[1764611183572,9.77643073,125.07,125.04,8.88]
[1764611183774,17.77201044,125.07,125.04,8.88]
[1764611184149,7.99424414,125.09,125.04,8.88]
[1764611184351,7.99424414,125.09,125.05,9.77643073]
[1764611184579,17.77067487,125.09,125.04,8.88]
[1764611184877,17.77067487,125.09,125.05,8.88]
[1764611185964,7.99424414,125.09,125.05,8.88]
[1764611186166,17.77067487,125.09,125.05,8.88]
[1764611186773,13.01632304,125.1,125.05,18.65643073]
[1764611186972,5.02248448,125.1,125.05,17.01893906]
[1764611187189,5.02248448,125.1,125.06,0.14216157]
[1764611187479,9.77643073,125.09,125.07,8.88]
[1764611187683,14.79891521,125.1,125.07,8.88]
[1764611188370,9.77643073,125.09,125.07,8.88]
[1764611189879,13.01612643,125.1,125.07,8.88]
[1764611190090,9.77643073,125.09,125.07,8.88]
[1764611190390,3.5160173,125.09,125.07,8.88]
[1764611191291,5.02248448,125.1,125.08,3.65817887]
[1764611191500,5.02248448,125.1,125.09,3.65817887]
[1764611192284,5.02248448,125.1,125.09,11.65242301]
[1764611192667,0.1,125.11,125.1,8.80994492]
[1764611192872,0.1,125.14,125.1,35.43219299]
[1764611193180,0.1,125.14,125.13,25.26097049]
[1764611193366,0.1,125.14,125.13,37.67698779]
[1764611193566,0.1,125.14,125.13,28.86704287]
[1764611193772,0.1,125.14,125.13,16.45102557]
[1764611193974,0.1,125.14,125.13,25.35102557]
[1764611194174,0.1,125.14,125.13,9.04216157]
[1764611196268,0.1,125.14,125.13,18.79692126]
[1764611197893,0.1,125.14,125.13,8.9]
[1764611198667,9.85475969,125.14,125.13,8.9]
[1764611198868,9.85475969,125.14,125.11,0.14216157]
[1764611199070,9.85475969,125.14,125.11,9.04216157]
[1764611199480,9.85475969,125.14,125.11,8.9]
[1764611199684,9.75475969,125.12,125.11,8.9]
[1764611199885,9.75475969,125.12,125.07,9.75475969]
[1764611200184,9.75475969,125.12,125.08,8.9]
[1764611200392,9.75475969,125.11,125.08,8.9]
[1764611201077,7.99198857,125.13,125.08,8.9]
[1764611201276,9.75475969,125.12,125.08,8.9]
[1764611201467,9.75475969,125.12,125.09,0.14216157]
[1764611202588,9.75475969,125.12,125.08,8.9]
[1764611204970,9.75475969,125.11,125.08,8.9]
[1764611205994,9.75475969,125.12,125.08,18.65475969]
[1764611206375,17.7468076,125.13,125.08,18.65475969]
[1764611206576,17.7468076,125.13,125.09,9.89692126]
[1764611206778,9.75475969,125.12,125.08,8.9]
[1764611206983,7.99204791,125.13,125.08,8.9]
[1764611206984,9.75475969,125.11,125.08,8.9]
[1764611207879,9.75475969,125.1,125.08,8.9]
[1764611208076,9.75475969,125.09,125.08,8.9]
[1764611208311,9.75475969,125.09,125.04,8.88]
[1764611208475,9.75475969,125.06,125.04,8.88]
[1764611209003,9.75475969,125.07,125.04,8.88]
[1764611209779,9.75475969,125.08,125.04,8.88]
[1764611210008,27.97764659,125.1,125.04,8.88]
[1764611210009,9.75475969,125.07,125.04,8.88]
[1764611210397,27.97197984,125.13,125.04,26.63198294]
[1764611210580,9.75475969,125.09,125.04,26.63198294]
[1764611211391,9.75475969,125.09,125.05,0.14216157]
[1764611211591,24.40054532,125.14,125.07,0.14216157]
[1764611211791,24.40054532,125.14,125.07,9.02216157]
[1764611211792,9.75475969,125.1,125.07,9.02216157]
[1764611213307,9.75475969,125.08,125.07,8.88]
[1764611214083,7.99168864,125.13,125.07,8.88]
[1764611214288,9.75475969,125.1,125.07,8.88]
[1764611214509,9.75475969,125.11,125.07,8.88]
[1764611215706,9.75475969,125.1,125.07,8.88]
[1764611216095,7.99235358,125.12,125.07,8.88]
[1764611216406,9.75475969,125.1,125.07,8.88]
[1764611216986,9.75475969,125.09,125.07,8.88]
[1764611218609,9.75475969,125.1,125.07,8.88]
[1764611218913,9.75475969,125.09,125.07,8.88]
[1764611219114,9.75475969,125.08,125.07,8.88]
[1764611219780,9.75475969,125.08,125.04,8.88]
[1764611220110,9.75475969,125.07,125.04,8.88]
[1764611220308,9.75475969,125.06,125.04,8.88]
[1764611220516,3.51744516,125.06,125.04,8.88]
[1764611220721,3.51744516,125.05,125.02,0.14216157]
[1764611221010,3.51744516,125.03,124.98,8.00107198]
[1764611221210,3.51744516,125.01,124.96,11.52000597]
[1764611221413,3.51744516,125.01,124.98,8.88]
[1764611221993,3.51744516,125.0,124.98,8.88]
[1764611222383,8.55839725,125.0,124.98,8.88]
[1764611223017,8.55839725,124.99,124.98,8.88]
[1764611224010,16.5590373,124.99,124.93,8.88]
[1764611224316,8.55839725,124.94,124.93,8.88]
[1764611224488,8.00064005,124.99,124.93,8.88]
[1764611224687,28.00224017,124.99,124.93,8.88]
[1764611224885,8.55839725,124.98,124.94,0.14216157]
[1764611225100,8.55839725,124.97,124.94,0.14216157]
[1764611226109,8.55839725,124.98,124.94,0.14216157]
[1764611226289,36.56063742,124.99,124.94,8.70055882]
[1764611226495,36.56063742,124.99,124.95,8.55839725]
[1764611227087,8.00064005,124.99,124.96,17.43839725]
[1764611227612,8.00064005,124.99,124.96,8.88]
[1764611228012,16.5590373,124.99,124.96,8.88]
[1764611228330,8.55839725,124.97,124.93,8.88]
[1764611228493,8.55839725,124.96,124.93,8.88]
[1764611228693,8.80994492,125.0,124.93,8.88]
[1764611228910,8.55839725,124.97,124.93,8.88]
[1764611229103,92.68994492,125.0,124.93,8.88]
[1764611229303,8.55839725,124.96,124.93,8.88]
[1764611229599,8.55839725,124.95,124.93,8.88]
[1764611230319,16.56180634,124.95,124.93,8.88]
[1764611230814,8.55839725,124.95,124.93,8.88]
[1764611231021,16.56167787,124.95,124.93,8.88]
[1764611231713,16.56115897,124.96,124.93,8.88]
[1764611232594,8.55839725,124.95,124.93,8.88]
[1764611232794,8.55839725,124.94,124.91,0.2]
[1764611232999,8.55839725,124.93,124.91,0.2]
[1764611234723,28.00916376,124.96,124.91,0.2]
[1764611234906,8.55839725,124.93,124.91,0.2]
[1764611235994,28.00916376,124.96,124.91,0.2]
[1764611235995,8.55839725,124.94,124.91,0.2]
[1764611236400,8.55839725,124.95,124.91,8.75839725]
[1764611236606,16.56052816,124.97,124.93,8.55839725]
[1764611236847,8.00213091,124.97,124.93,8.55839725]
[1764611237016,8.00127025,124.99,124.94,8.55839725]
[1764611237217,8.00127025,124.99,124.96,8.55839725]
[1764611237815,16.5596675,124.99,124.95,8.55839725]
[1764611238129,52.87013162,124.99,124.95,8.55839725]
[1764611238727,8.55839725,124.98,124.94,8.55839725]
[1764611239220,8.0012802,124.98,124.95,8.55839725]
[1764611240426,8.0012802,124.98,124.95,15.33046937]
[1764611241005,23.33174957,124.98,124.94,15.33046937]
[1764611241201,43.33495008,124.98,124.94,15.33046937]
[1764611242909,15.33046937,124.98,124.94,15.33046937]
[1764611243633,15.33046937,124.96,124.91,9.08]
[1764611243818,15.33046937,124.95,124.91,9.08]
[1764611244019,15.33046937,124.94,124.91,9.08]
[1764611244218,15.33046937,124.97,124.93,15.33046937]
[1764611244422,25.188864,124.98,124.92,15.33046937]
[1764611244423,15.33046937,124.96,124.92,15.33046937]
[1764611244732,15.33046937,124.94,124.91,0.2]
[1764611244939,8.00448251,124.93,124.91,0.2]
[1764611245107,15.33046937,124.92,124.91,0.2]
[1764611246010,24.21046937,124.92,124.91,0.2]
[1764611246919,32.21559264,124.92,124.91,0.2]
[1764611247340,8.00512327,124.92,124.91,0.2]
[1764611247516,23.33559264,124.92,124.91,0.2]
[1764611248014,8.00512327,124.92,124.91,0.2]
[1764611249534,15.33046937,124.93,124.91,0.2]
[1764611250118,23.33431121,124.94,124.91,0.2]
[1764611250637,15.33046937,124.93,124.91,0.2]
[1764611250840,23.33431121,124.94,124.91,0.2]
[1764611251829,15.33046937,124.92,124.91,0.2]
[1764611252534,28.01344645,124.94,124.91,0.2]
[1764611252736,15.33046937,124.92,124.91,0.2]
[1764611253512,23.33559264,124.92,124.91,0.2]
[1764611254113,16.88453616,124.93,124.91,0.2]
[1764611254310,15.33046937,124.92,124.91,0.2]
[1764611255544,23.33559264,124.92,124.91,0.2]
[1764611256417,15.33046937,124.92,124.91,0.2]
[1764611256633,16.308864,124.95,124.91,0.2]
[1764611256824,15.33046937,124.93,124.91,0.2]
[1764611257230,15.33046937,124.92,124.91,0.2]
[1764611260749,23.33559264,124.92,124.91,0.2]
[1764611261122,32.21559264,124.92,124.91,0.2]
[1764611261862,8.00512327,124.92,124.91,0.2]
[1764611263764,8.00448251,124.93,124.91,0.2]
[1764611267565,23.33495188,124.93,124.91,0.2]
[1764611267765,15.33046937,124.92,124.91,0.2]
[1764611268068,132.33440156,124.92,124.91,0.2]
[1764611268366,116.02553756,124.92,124.91,0.2]
[1764611269448,116.16769913,124.92,124.91,0.2]
[1764611269793,16.308864,124.88,124.87,0.2]
[1764611270074,124.32927829,124.88,124.87,0.2]
[1764611270565,16.308864,124.86,124.85,0.2]
[1764611270866,83.88,124.86,124.85,0.2]
[1764611271066,99.21046937,124.86,124.85,0.2]
[1764611271667,107.21943941,124.86,124.85,0.2]
[1764611272259,32.21943941,124.86,124.85,0.2]
[1764611275071,48.52830341,124.86,124.85,0.2]
[1764611275450,57.33824833,124.86,124.85,0.2]
[1764611276074,48.52830341,124.86,124.85,0.2]
[1764611277273,39.64830341,124.86,124.85,0.2]
[1764611278264,123.45824833,124.86,124.85,0.2]
[1764611280483,107.14938433,124.86,124.85,0.2]
[1764611280772,8.80994492,124.85,124.84,0.2]
[1764611280954,33.16257586,124.85,124.84,0.2]
[1764611281761,41.17218739,124.85,124.84,0.2]
[1764611282751,41.03002582,124.85,124.84,0.2]
[1764611284477,31.21693296,124.85,124.84,0.2]
[1764611287476,29.83456917,124.87,124.86,0.121174]
[1764611287779,24.31719266,124.87,124.86,0.121174]
[1764611288359,8.00832866,124.87,124.86,0.121174]
[1764611288674,8.88,124.89,124.86,0.121174]
[1764611288675,8.00764225,124.89,124.86,0.121174]
[1764611288877,8.00764225,124.89,124.86,5.63855051]
[1764611290199,16.308864,124.9,124.87,5.51737651]
[1764611290364,8.88,124.92,124.88,15.34638817]
[1764611290678,8.88,124.92,124.87,15.48854974]
[1764611290679,48.5405951,124.92,124.87,15.48854974]
[1764611291178,23.34910998,124.96,124.91,15.34638817]
[1764611291558,15.34638817,124.94,124.89,15.34638817]
[1764611291781,15.34638817,124.93,124.88,15.34638817]
[1764611291987,24.22638817,124.95,124.9,15.34638817]
[1764611292166,32.22987627,124.95,124.9,15.34638817]
[1764611293389,15.34638817,124.94,124.89,15.34638817]
[1764611293967,23.35068005,124.94,124.89,15.34638817]
[1764611294165,15.34638817,124.93,124.88,15.48854974]
[1764611294676,23.35068005,124.94,124.89,15.34638817]
[1764611294876,32.22985437,124.95,124.9,15.34638817]
[1764611295786,32.22985437,124.95,124.88,0.14216157]
[1764611296090,15.34638817,124.93,124.88,15.48854974]
[1764611296290,15.34638817,124.94,124.89,15.34638817]
[1764611297181,15.34638817,124.93,124.88,15.48854974]
[1764611297907,36.89130497,124.95,124.9,15.34638817]
[1764611297908,8.88,124.95,124.9,15.34638817]
[1764611298078,15.34638817,124.97,124.92,15.34638817]
[1764611298391,16.308864,124.96,124.92,15.34638817]
[1764611299076,15.34638817,124.97,124.92,15.34638817]
[1764611299277,16.308864,124.96,124.92,15.34638817]
[1764611300780,31.65525217,124.96,124.91,15.34638817]
[1764611300981,16.308864,124.96,124.92,15.34638817]
[1764611302189,24.31142521,124.96,124.92,15.34638817]
[1764611302387,24.31142521,124.96,124.92,8.564299]
[1764611303092,16.308864,124.96,124.93,8.564299]
[1764611303391,8.00173912,124.98,124.94,8.564299]
[1764611304070,8.00173912,124.98,124.95,8.564299]
[1764611304268,8.00173912,124.98,124.94,8.564299]
[1764611304468,8.564299,124.96,124.91,8.70646057]
[1764611304873,8.88,124.97,124.91,8.70646057]
[1764611305099,8.88,124.97,124.93,8.564299]
[1764611305688,36.56923863,124.98,124.93,8.564299]
[1764611307002,16.56603812,124.98,124.93,8.564299]
[1764611307206,8.00173912,124.98,124.94,8.564299]
[1764611308173,16.56603812,124.98,124.94,8.564299]
[1764611308375,8.00173912,124.98,124.94,8.564299]
[1764611308574,8.00173912,124.98,124.95,8.564299]
[1764611308803,8.00173912,124.98,124.94,8.564299]
[1764611309209,16.56603812,124.98,124.93,8.564299]
[1764611310204,16.44596012,124.98,124.93,8.564299]
[1764611310518,11.40457778,124.98,124.93,3.52291666]
[1764611312701,3.52291666,124.97,124.92,12.54507823]
[1764611312898,3.52291666,124.96,124.92,8.88]
[1764611313104,3.52291666,124.95,124.92,8.88]
[1764611313411,12.40291666,124.96,124.91,3.52291666]
[1764611313584,11.525804,124.96,124.91,3.52291666]
[1764611313982,8.00288734,124.96,124.92,3.52291666]
[1764611315504,8.00288734,124.96,124.9,0.14216157]
[1764611315678,27.834668,124.96,124.91,3.52291666]
[1764611316581,24.31175134,124.96,124.91,3.52291666]
[1764611316784,27.834668,124.96,124.91,3.52291666]
[1764611317214,3.52291666,124.95,124.9,0.14216157]
[1764611317518,3.52291666,124.95,124.9,3.66507823]
[1764611318506,27.834668,124.96,124.91,3.52291666]
[1764611319494,16.308864,124.96,124.91,3.52291666]
[1764611319989,19.83178066,124.96,124.91,3.52291666]
[1764611320190,27.83476625,124.96,124.91,0.14216157]
[1764611320393,27.83476625,124.96,124.91,3.66507823]
[1764611321985,27.83476625,124.96,124.9,8.00620413]
[1764611321986,3.52291666,124.94,124.9,0.14216157]
[1764611322189,24.31184959,124.96,124.91,3.52291666]
[1764611322412,27.83476625,124.96,124.91,3.52291666]
[1764611322804,3.52291666,124.95,124.9,3.66507823]
[1764611322999,24.31184959,124.96,124.88,16.308864]
[1764611323000,3.52291666,124.94,124.88,16.308864]
[1764611323197,3.52291666,124.94,124.89,3.52291666]
[1764611323409,8.80994492,124.95,124.89,3.52291666]
[1764611323606,3.52291666,124.94,124.88,16.308864]
[1764611323913,3.52291666,124.94,124.89,3.52291666]
[1764611324319,11.52710985,124.94,124.89,3.52291666]
[1764611326107,3.52291666,124.92,124.88,0.14216157]
[1764611326306,3.52291666,124.92,124.88,3.66507823]
[1764611326497,3.52291666,124.93,124.88,3.66507823]
[1764611327393,20.40710985,124.94,124.89,3.52291666]
[1764611327622,24.31205789,124.96,124.91,3.52291666]
[1764611327816,8.00164604,124.98,124.93,3.52291666]
[1764611328023,3.52291666,124.99,124.94,3.52291666]
[1764611328218,16.308864,124.99,124.93,0.14216157]
[1764611328416,24.30953585,124.99,124.95,3.52291666]
[1764611328715,8.00067185,124.99,124.93,0.14216157]
[1764611328900,27.83245251,124.99,124.94,3.52291666]
[1764611329618,24.30953585,124.99,124.93,0.14216157]
[1764611329937,24.30953585,124.99,124.95,3.52291666]
[1764611331509,16.308864,124.99,124.96,3.52291666]
[1764611332013,16.408864,125.0,124.96,3.52291666]
[1764611332516,16.408864,125.0,124.97,3.52291666]
[1764611332723,0.1,125.0,124.97,3.52291666]
[1764611333219,0.1,125.0,124.98,3.52291666]
[1764611333425,0.1,125.0,124.97,3.52291666]
[1764611335221,0.1,125.0,124.98,3.52291666]
[1764611335405,0.1,125.0,124.96,8.00249298]
[1764611335406,0.1,125.0,124.99,3.52291666]
[1764611336033,0.1,125.0,124.98,3.52291666]
[1764611336330,0.1,125.0,124.99,3.52291666]
[1764611337728,0.1,125.0,124.99,3.66507823]
[1764611338033,0.1,125.0,124.99,11.66571828]
[1764611338924,0.1,125.0,124.99,20.54571828]
[1764611339449,0.1,125.0,124.99,12.54507823]
[1764611341608,0.1,125.0,124.99,29.3556632]
[1764611342009,7.99498887,125.08,125.0,0.14216157]
[1764611342310,3.52291666,125.07,125.01,8.86]
[1764611342518,3.52291666,125.07,125.02,3.52291666]
[1764611342718,27.82676953,125.08,125.03,3.52291666]
[1764611342919,11.51790553,125.08,125.04,3.52291666]
[1764611343322,16.308864,125.07,125.03,3.52291666]
[1764611344606,16.308864,125.07,125.01,16.85925605]
[1764611344803,19.83178066,125.07,125.03,3.52291666]
[1764611345022,16.308864,125.07,125.03,3.52291666]
[1764611345330,19.83178066,125.07,125.03,3.52291666]
[1764611346130,19.83178066,125.07,125.02,3.66507823]
[1764611346627,19.83178066,125.07,125.03,3.52291666]
[1764611347434,16.308864,125.07,125.03,3.52291666]
[1764611348134,19.83178066,125.07,125.03,3.52291666]
[1764611348332,19.83178066,125.07,125.02,3.66507823]
[1764611349427,16.308864,125.07,125.03,3.52291666]
[1764611349627,16.308864,125.07,125.02,8.14069716]
[1764611349628,16.308864,125.07,125.04,3.52291666]
[1764611349819,16.308864,125.07,125.03,3.52291666]
[1764611350133,16.308864,125.07,125.04,3.52291666]
[1764611354550,16.308864,125.07,125.03,3.52291666]
[1764611354923,16.308864,125.07,125.04,3.52291666]
[1764611357142,11.51793165,125.08,125.04,3.52291666]
[1764611357348,11.51793165,125.08,125.03,3.52291666]
[1764611358144,11.51793165,125.08,125.02,8.14082457]
[1764611358328,11.51793165,125.08,125.03,3.52291666]
[1764611361648,7.99501499,125.08,125.03,3.52291666]
[1764611361831,11.51793165,125.08,125.03,3.52291666]
[1764611362842,7.99501499,125.08,125.03,3.52291666]
[1764611363440,7.99501499,125.08,125.04,3.52291666]
[1764611363835,7.99501499,125.08,125.02,0.14216157]
[1764611364033,11.51793165,125.08,125.03,3.52291666]
[1764611364535,13.49099808,125.08,125.03,5.49598309]
[1764611364946,13.49169022,125.07,125.02,5.63814466]
[1764611365451,7.99499941,125.08,125.03,5.49598309]
[1764611365754,7.99499941,125.08,125.04,5.49598309]
[1764611366329,38.65854076,125.1,125.05,5.49598309]
[1764611366646,16.308864,125.1,125.07,5.49598309]
[1764611366829,0.1,125.11,125.09,5.49598309]
[1764611367235,0.1,125.11,125.05,7.99680127]
[1764611367450,0.1,125.11,125.07,5.63814466]
[1764611367748,0.1,125.11,125.08,5.49598309]
[1764611367934,5.49598309,125.1,125.06,8.86]
[1764611369151,16.308864,125.1,125.06,8.86]
[1764611369352,21.80484709,125.1,125.06,8.86]
[1764611371939,29.79848812,125.1,125.06,8.86]
[1764611372745,21.80484709,125.1,125.06,8.86]
[1764611373068,21.80484709,125.1,125.05,5.63814466]
[1764611373272,29.79846789,125.1,125.05,5.63814466]
[1764611373753,29.79846789,125.1,125.05,5.49598309]
[1764611374057,5.49598309,125.07,125.02,14.35598309]
[1764611374254,5.49598309,125.08,125.03,5.49598309]
[1764611374961,8.86,125.09,125.02,9.00216157]
[1764611375166,8.86,125.09,125.02,14.35598309]
[1764611375461,13.49152922,125.07,125.02,14.35598309]
[1764611375858,5.49598309,125.07,125.02,14.35598309]
[1764611376161,14.35598309,125.09,125.03,5.49598309]
[1764611376344,22.35038656,125.09,125.03,5.49598309]
[1764611376549,22.35038656,125.09,125.04,5.49598309]
[1764611376550,13.49038656,125.09,125.04,5.49598309]
[1764611376938,7.99440347,125.09,125.05,5.49598309]
[1764611377664,7.99440347,125.09,125.03,7.99761468]
[1764611377665,7.99440347,125.09,125.04,5.63814466]
[1764611377863,13.49038656,125.09,125.04,5.63814466]
[1764611378866,7.99440347,125.09,125.04,5.63814466]
[1764611379537,38.65872258,125.1,125.04,5.63814466]
[1764611379739,25.168864,125.1,125.06,5.63814466]
[1764611379949,16.308864,125.09,125.07,5.49598309]
[1764611380166,0.1,125.11,125.07,5.49598309]
[1764611380552,0.1,125.11,125.06,5.63814466]
[1764611380948,0.1,125.11,125.07,5.49598309]
[1764611382066,5.59598309,125.11,125.06,14.49814466]
[1764611383268,5.59598309,125.11,125.06,9.00216157]
[1764611383470,5.59598309,125.11,125.06,14.49814466]
[1764611385861,5.49598309,125.1,125.06,8.86]
[1764611386374,13.58958584,125.11,125.06,14.35598309]
[1764611387071,8.09360275,125.11,125.06,14.35598309]
[1764611387274,8.09360275,125.11,125.07,5.49598309]
[1764611387863,13.58958584,125.11,125.07,5.49598309]
[1764611388376,13.58958584,125.11,125.06,8.86]
[1764611388561,13.58958584,125.11,125.07,5.49598309]
[1764611390365,8.09360275,125.11,125.07,5.49598309]
[1764611390566,13.58958584,125.11,125.07,5.49598309]
[1764611390759,13.58958584,125.11,125.06,22.35209621]
[1764611390961,5.49598309,125.1,125.06,8.86]
[1764611392878,13.48960949,125.1,125.06,8.86]
[1764611395384,21.80484709,125.07,125.01,6.60784896]
[1764611395573,5.49598309,125.05,125.0,28.96344949]
[1764611396066,5.49598309,125.05,125.01,5.49598309]
[1764611396272,5.49598309,125.02,124.97,20.96383205]
[1764611396581,5.49598309,125.0,124.97,8.86]
[1764611397886,13.49623036,125.0,124.95,5.49598309]
[1764611398182,13.49623036,125.0,124.96,8.86]
[1764611398183,5.49598309,125.0,124.96,8.86]
[1764611398387,5.49598309,124.99,124.96,8.86]
[1764611399088,16.308864,125.01,124.96,14.35598309]
[1764611399089,21.80484709,125.01,124.96,14.35598309]
[1764611399285,21.80484709,124.99,124.96,8.86]
[1764611399476,21.80484709,124.99,124.93,16.86392463]
[1764611399477,5.49598309,124.98,124.93,16.86392463]
[1764611399676,5.49598309,124.98,124.94,0.14216157]
[1764611399865,16.308864,124.99,124.93,8.86]
[1764611400062,5.49598309,124.97,124.93,8.86]